lending/lending_fUSD_20251020
["ID","MTS","AMOUNT","RATE_DAILY","PERIOD"]
[391905365,1760973033680,-500.0,0.0003348,2]
[391905366,1760973033690,-727.00150104,0.00033483,7]
[391905367,1760973033699,-1913.94741642,0.00033483,2]
[391905368,1760973033709,-500.0,0.00033485,7]
[391905369,1760973033720,-300.0,0.00033489,2]
[391905370,1760973033729,-5906.4235994,0.000335,120]
[391905371,1760973033743,-1212.15222392,0.000335,120]
[391905372,1760973033755,-2130.35860759,0.000335,120]
[391905373,1760973033765,-1118.13991309,0.000335,120]
[391905374,1760973033774,-165.03359013,0.000335,120]
[391905375,1760973033783,-200.0,0.00033535,2]
[391905376,1760973033792,-200.0,0.00033535,2]
[391905377,1760973033801,-200.0,0.00033535,2]
[391905378,1760973033810,-150.0,0.00033535,2]
[391905379,1760973033819,-150.0,0.00033535,2]
[391905380,1760973033827,-150.0,0.00033535,2]
[391905381,1760973033836,-500.0,0.00033535,2]
[391905382,1760973033845,-155.379,0.00033537,2]
[391905383,1760973033854,-571.0,0.00033537,2]
[391905384,1760973033863,-786.0,0.00033537,2]
[391905385,1760973033872,-2051.0,0.00033537,2]
[391905386,1760973033881,-3408.0,0.00033537,2]
[391905387,1760973033890,-605.0,0.00033537,2]
[391905388,1760973033899,-1310.0,0.00033537,2]
[391905389,1760973033908,-1590.0,0.00033537,2]
[391905390,1760973033917,-1268.0,0.00033537,2]
[391905391,1760973033928,-817.0,0.00033537,2]
[391905392,1760973033937,-2547.0,0.00033537,2]
[391905393,1760973033947,-1184.0,0.00033537,2]
[391905394,1760973033956,-902.0,0.00033537,2]
[391905395,1760973033965,-2591.0,0.00033537,2]
[391905396,1760973033974,-6446.0,0.00033537,2]
[391905397,1760973033983,-6428.0,0.00033537,2]
[391905398,1760973033993,-150.0,0.00033589,2]
[391905399,1760973034003,-150.0,0.00033589,2]
[391905400,1760973034012,-153.84660669,0.00033589,2]
[391905401,1760973034021,-500.0,0.00033589,2]
[391905402,1760973034031,-500.0,0.00033597,7]
[391905403,1760973034040,-623.41298636,0.000336,2]
[391905404,1760973034050,-196.18945097,0.00033644,2]
[391905405,1760973034059,-150.0,0.00033644,2]
[391905406,1760973034068,-500.0,0.00033644,2]
[391905407,1760973034077,-623.41298628,0.00033667,2]
[391905408,1760973034087,-171.9602,0.00033699,2]
[391905409,1760973034096,-500.0,0.00033699,2]
[391905410,1760973034106,-165.10064934,0.000337,120]
[391905411,1760973034115,-623.41298628,0.00033734,2]
[391905412,1760973034125,-500.0,0.00033754,2]
[391905413,1760973034134,-347.0,0.00033769,2]
[391905414,1760973034143,-197.0,0.00033796,7]
[391905415,1760973034152,-623.41298628,0.00033801,2]
[391905416,1760973034161,-500.0,0.00033809,2]
[391905417,1760973034170,-197.0,0.00033834,2]
[391905418,1760973034180,-500.0,0.00033866,7]
[391905419,1760973034189,-623.41298628,0.00033868,2]
[391905420,1760973034198,-500.0,0.00033902,7]
[391905421,1760973034207,-500.0,0.00033923,7]
[391905422,1760973034217,-623.41298628,0.00033934,2]
[391905423,1760973034226,-720.43094553,0.00033935,7]
[391905424,1760973034237,-1000.0,0.00034,2]
[391905425,1760973034246,-1000.0,0.00034,2]
[391905426,1760973034255,-1000.0,0.00034,2]
[391905427,1760973034265,-20000.0,0.00034,2]
[391905428,1760973034275,-623.41298628,0.00034001,2]
[391905429,1760973034285,-500.0,0.00034003,7]
[391905430,1760973034295,-200.0,0.00034027,10]
[391905431,1760973034304,-4591.6597,0.00034035,2]
[391905432,1760973034314,-233.541,0.00034035,2]
[391905433,1760973034324,-500.0,0.00034053,7]
[391905434,1760973034334,-500.0,0.00034057,7]
[391905435,1760973034343,-500.0,0.00034058,7]
[391905436,1760973034353,-623.41298628,0.00034068,2]
[391905437,1760973034363,-500.0,0.00034069,7]
[391905438,1760973034372,-2500.0,0.00034102,2]
[391905439,1760973034382,-623.41298628,0.00034135,2]
[391905440,1760973034391,-500.0,0.00034143,7]
[391905441,1760973034401,-500.0,0.00034148,7]
[391905442,1760973034411,-500.0,0.00034167,8]
[391905443,1760973034420,-500.0,0.00034167,8]
[391905444,1760973034431,-500.0,0.00034167,8]
[391905445,1760973034440,-737.47858358,0.00034181,2]
[391905446,1760973034450,-737.47858354,0.00034183,2]
[391905447,1760973034459,-737.47858354,0.00034186,2]
[391905448,1760973034469,-704.43811774,0.00034186,6]
[391905449,1760973034479,-737.47858354,0.00034188,2]
[391905450,1760973034489,-737.47858354,0.0003419,2]
[391905451,1760973034499,-5000.0,0.00034192,2]
[391905452,1760973034509,-695.39,0.00034192,2]
[391905453,1760973034518,-695.75,0.00034192,2]
[391905454,1760973034528,-475.11,0.00034192,2]
[391905455,1760973034538,-695.75,0.00034192,2]
[391905456,1760973034547,-695.75,0.00034192,2]
[391905457,1760973034557,-475.11,0.00034192,2]
[391905458,1760973034567,-695.75,0.00034192,2]
[391905459,1760973034576,-475.11,0.00034192,2]
[391905460,1760973034586,-475.11,0.00034192,2]
[391905461,1760973034596,-695.75,0.00034192,2]
[391905462,1760973034606,-693.59,0.00034192,2]
[391905463,1760973034620,-737.47858354,0.00034193,2]
[391905464,1760973034630,-737.47858354,0.00034195,2]
[391905465,1760973034639,-737.47858354,0.00034197,2]
[391905466,1760973034650,-737.47858354,0.000342,2]
[391905467,1760973034662,-1202.22306245,0.000342,120]
[391905468,1760973034673,-500.0,0.00034201,7]
[391905469,1760973034683,-1000.0,0.00034201,2]
[391905470,1760973034697,-4987.26513412,0.00034201,2]
[391905471,1760973034707,-66016.15,0.00034202,2]
[391905472,1760973034717,-1000.0,0.00034202,2]
[391905473,1760973034727,-179.34077465,0.00034202,2]
[391905474,1760973034736,-623.41298628,0.00034202,2]
[391905475,1760973034746,-737.47858354,0.00034202,2]
[391905476,1760973034755,-159.14244701,0.00034202,2]
[391905477,1760973034765,-574.25463388,0.00034202,2]
[391905478,1760973034774,-528.7199296,0.00034202,2]
[391905479,1760973034783,-197.0,0.00034223,2]
[391905480,1760973034793,-1000.0,0.00034246,30]
[391905481,1760973034803,-500.0,0.00034264,7]
[391905482,1760973034813,-500.0,0.00034268,7]
[391905483,1760973034823,-15062.6489784,0.00034269,3]
[391905484,1760973034833,-500.0,0.00034271,8]
[391905485,1760973034843,-45187.9469351,0.00034271,3]
[391905486,1760973034852,-60250.5959134,0.00034279,3]
[391905487,1760973034862,-15062.6489784,0.00034287,3]
[391905488,1760973034873,-1000.0,0.00034288,2]
[391905489,1760973034883,-1000.0,0.00034288,2]
[391905490,1760973034893,-1000.0,0.00034288,2]
[391905491,1760973034903,-500.0,0.00034288,8]
[391905492,1760973034912,-500.0,0.00034288,2]
[391905493,1760973034922,-500.0,0.00034288,8]
[391905494,1760973034932,-500.0,0.00034288,8]
[391905495,1760973034942,-176.8008476,0.00034289,2]
[391905496,1760973034951,-105437.5624749,0.00034289,2]
[391905497,1760973034961,-3853.6100445,0.00034289,2]
[391905498,1760973034971,-782.254826,0.00034289,2]
[391905499,1760973034981,-500.0,0.00034291,8]
[391905500,1760973034991,-500.0,0.00034291,8]
[391905501,1760973035000,-513.3628881,0.00034291,8]
[391905502,1760973035010,-1808.61638079,0.00034292,3]
[391905503,1760973035022,-122367.75360538,0.00034292,3]
[391905504,1760973035034,-4155.9276905,0.00034292,3]
[391905505,1760973035049,-181.7975,0.0003395,2]
[391905506,1760973035058,-43452.3269169,0.00034292,3]
[391905507,1760973035070,-54155.11008143,0.00034292,3]
[391905508,1760973035079,-68294.21799076,0.00034292,3]
[391905509,1760973035091,-26691.89833569,0.00034292,3]
[391905695,1760973039816,-151.0,0.00032877,30]
[391905697,1760973039826,-107.87034677,0.000335,120]
[391905700,1760973039865,-74.53145091,0.000335,120]
[391905702,1760973039874,-557.0,0.00033537,2]
[391905704,1760973039885,-1838.67193759,0.00034292,3]
[391905985,1760973042869,-1355.65383367,0.00034292,3]
[391905999,1760973043121,-10080.5309,0.00034292,3]
[391906554,1760973048860,-4295.75903622,0.00034292,3]
[391906593,1760973049242,-1184.70763857,0.00034292,3]
[391906597,1760973049261,-1114.9138,0.00034292,3]
[391906599,1760973049279,-353.60321622,0.00034292,3]
[391907025,1760973126821,500.0,0.00034312,30]
[391907026,1760973127472,500.0,0.00034312,30]
[391907027,1760973128139,500.0,0.00034312,30]
[391907028,1760973128764,500.0,0.00034312,30]
[391907029,1760973129375,500.0,0.00034312,30]
[391907030,1760973130069,500.0,0.00034312,30]
[391907031,1760973130775,500.0,0.00034312,30]
[391907032,1760973131676,500.0,0.00034312,30]
[391907033,1760973132458,500.0,0.00034312,30]
[391907034,1760973133085,500.0,0.00034312,30]
[391907035,1760973134127,500.0,0.00034312,30]
[391907036,1760973134655,500.0,0.00034312,30]
[391907037,1760973135375,500.0,0.00034312,30]
[391907038,1760973135939,500.0,0.00034312,30]
[391907039,1760973136018,500.0,0.00034312,30]
[391907040,1760973136642,500.0,0.00034312,30]
[391907041,1760973136797,500.0,0.00034312,30]
[391907042,1760973137538,500.0,0.00034312,30]
[391907043,1760973137599,500.0,0.00034312,30]
[391907044,1760973138204,500.0,0.00034312,30]
[391907045,1760973138285,500.0,0.00034312,30]
[391907046,1760973139128,500.0,0.00034312,30]
[391907047,1760973139557,500.0,0.00034312,30]
[391907048,1760973139786,500.0,0.00034312,30]
[391907049,1760973140503,500.0,0.00034312,30]
[391907050,1760973141143,500.0,0.00034312,30]
[391907051,1760973142083,500.0,0.00034312,30]
[391907052,1760973142411,500.0,0.00034312,30]
[391907053,1760973143275,500.0,0.00034312,30]
[391907054,1760973143970,500.0,0.00034312,30]
[391907055,1760973144626,500.0,0.00034312,30]
[391907056,1760973145380,500.0,0.00034312,30]
[391907057,1760973146507,500.0,0.00034312,30]
[391907058,1760973243595,2602.58928043,0.00022,120]
[391907059,1760973426054,233.00554659,0.00034312,30]
[391907060,1760973426157,492.2403524,0.00034312,30]
[391907061,1760973432875,351.40737607,0.00034312,30]
[391907094,1760973927938,-250.78271875,0.00014925,2]
[391907095,1760973932840,-194.51678034,0.00014925,2]
[391907096,1760973938277,-273.76741579,0.00014925,2]
[391907097,1760973941010,-335.04487909,0.00014925,2]
[391907104,1760973987885,-343.00434729,0.000149,2]
[391907105,1760973989326,-215.86258775,0.000149,2]
[391907106,1760973990701,-293.79458589,0.000149,2]
[391907107,1760973992226,-312.57792887,0.000149,2]
[391907118,1760974072513,482.52771426,0.00013,15]
[391907119,1760974073843,-168.07754704,0.000149,2]
[391907120,1760974075781,-166.66,0.000149,2]
[391907128,1760974093211,-200.0,0.00014825,2]
[391907129,1760974095149,-371.28600051,0.00014825,2]
[391907130,1760974099172,-346.0,0.00014825,2]
[391907141,1760974154939,182.19,0.00028793,120]
[391907166,1760974231671,-300.0,0.00014899,2]
[391907168,1760974231681,-1200.0,0.00014899,2]
[391907170,1760974231690,-300.0,0.00014899,2]
[391907172,1760974231699,-665.12484,0.000149,2]
[391907173,1760974231710,-3469.52215,0.000149,2]
[391907174,1760974231721,-1040.32404521,0.000149,2]
[391907175,1760974231732,-572.47735911,0.000149,2]
[391907176,1760974231743,-1618.46357744,0.000149,2]
[391907177,1760974231754,-296.30613985,0.000149,2]
[391907178,1760974231765,-178.46954419,0.000149,2]
[391907179,1760974231775,-150.0,0.00014998,2]
[391907180,1760974231784,-500.0,0.00014999,2]
[391907181,1760974231793,-500.0,0.00014999,2]
[391907182,1760974231802,-310.24812383,0.00014999,2]
[391907183,1760974231811,-500.0,0.00014999,2]
[391907184,1760974231820,-500.0,0.00014999,2]
[391907185,1760974231830,-500.0,0.00014999,2]
[391907186,1760974231839,-500.0,0.00014999,2]
[391907187,1760974231848,-500.0,0.00014999,2]
[391907188,1760974231857,-500.0,0.00014999,2]
[391907189,1760974231867,-500.0,0.00014999,2]
[391907190,1760974231875,-500.0,0.00014999,2]
[391907191,1760974231884,-500.0,0.00014999,2]
[391907192,1760974231894,-500.0,0.00014999,2]
[391907193,1760974231903,-324.01366825,0.00014999,2]
[391907194,1760974231911,-500.0,0.00014999,2]
[391907195,1760974231920,-500.0,0.00014999,2]
[391907196,1760974231930,-500.0,0.00014999,2]
[391907197,1760974231939,-342.47082324,0.00014999,2]
[391907198,1760974231948,-296.05030886,0.00014999,2]
[391907199,1760974231957,-166.29910516,0.00014999,2]
[391907200,1760974231967,-371.78622558,0.00014999,2]
[391907201,1760974231976,-500.0,0.00014999,2]
[391907202,1760974231985,-71513.92337177,0.00015,2]
[391907203,1760974231994,-87674.97998384,0.00015,2]
[391907204,1760974232006,-368.63773204,0.00015,2]
[391907205,1760974232017,-55865.0,0.00015,2]
[391907206,1760974232028,-460.51348595,0.00015,2]
[391907207,1760974232039,-1487.52828321,0.00015,2]
[391907208,1760974232050,-7035.65497183,0.00015,2]
[391907209,1760974232061,-259.69942639,0.00015,2]
[391907210,1760974232072,-370.20192015,0.00015,2]
[391907211,1760974232083,-383.44000004,0.00015,2]
[391907212,1760974232094,-7848.92671506,0.00015,2]
[391907213,1760974232105,-904.11328782,0.00015,2]
[391907214,1760974232120,-2107.37240693,0.00015,2]
[391907215,1760974232131,-646.21618259,0.00015,2]
[391907216,1760974232147,-512.25234728,0.00015,2]
[391907217,1760974232159,-675.0,0.00015,2]
[391907219,1760974237614,-1121.9,0.00015,2]
[391907220,1760974237626,-13680.21391566,0.00015,2]
[391907222,1760974237653,-35517.23790053,0.00015,2]
[391907224,1760974237664,-9338.48674152,0.00015,2]
[391907226,1760974237676,-7383.15703003,0.00015,2]
[391907227,1760974237693,-1163.28764171,0.00015,2]
[391907228,1760974237715,-2021.9584495,0.00015,2]
[391907229,1760974237728,-2015.29996,0.00015,2]
[391907230,1760974237745,-1422.41859326,0.00015,2]
[391907231,1760974237865,-2076.02272981,0.00015,2]
[391907232,1760974237874,-154.69,0.00015227,2]
[391907233,1760974237883,-150.0,0.00016123,2]
[391907234,1760974237894,-365.0,0.00016308,2]
[391907235,1760974237905,-1680.0,0.00016389,2]
[391907237,1760974237915,-154.69,0.00017402,2]
[391907238,1760974237928,-6530.82581411,0.00018,2]
[391907240,1760974237940,-41221.6260569,0.00018,2]
[391907242,1760974237949,-4663.71273327,0.00018,2]
[391907244,1760974237959,-1871.0,0.00018028,2]
[391907246,1760974237969,-250.0,0.00018582,2]
[391907248,1760974237978,-316.68597914,0.00019,2]
[391907250,1760974237988,-559.39,0.00019,2]
[391907252,1760974237998,-11083.61349291,0.00019444,2]
[391907253,1760974238008,-154.69,0.00019577,2]
[391907255,1760974238018,-12313.16054462,0.0002,2]
[391907257,1760974238028,-180.0,0.0002,2]
[391907259,1760974238038,-535.95469971,0.0002,2]
[391907261,1760974238048,-16408.58793668,0.000209,30]
[391907262,1760974238059,-154.69,0.00021753,2]
[391907264,1760974238069,-6782.52,0.00022562,2]
[391907266,1760974238078,-154.69,0.00023928,2]
[391907268,1760974238088,-43694.48401077,0.000248,3]
[391907305,1760974238544,-1323.27193708,0.000248,3]
[391907309,1760974238588,-12337.70441385,0.000248,3]
[391907311,1760974238598,-1477.617438,0.00024998,2]
[391907313,1760974238607,-154.69,0.00026103,2]
[391907315,1760974238616,-186.1,0.0002615,2]
[391907316,1760974238627,-153.0,0.00026233,2]
[391907318,1760974238636,-153.0,0.00026233,2]
[391907320,1760974238646,-153.0,0.00026233,2]
[391907322,1760974238655,-153.0,0.00026233,2]
[391907323,1760974238664,-153.0,0.00026233,2]
[391907325,1760974238673,-153.0,0.00026233,2]
[391907327,1760974238683,-153.0,0.00026233,2]
[391907329,1760974238692,-153.0,0.00026233,2]
[391907331,1760974238702,-153.0,0.00026233,2]
[391907332,1760974238712,-153.0,0.00026233,2]
[391907334,1760974238721,-153.0,0.00026233,2]
[391907336,1760974238731,-153.0,0.00026233,2]
[391907338,1760974238740,-153.0,0.00026237,2]
[391907339,1760974238749,-153.0,0.00026237,2]
[391907341,1760974238761,-153.0,0.00026237,2]
[391907343,1760974238770,-153.0,0.00026237,2]
[391907345,1760974238779,-153.0,0.00026237,2]
[391907346,1760974238789,-153.0,0.00026237,2]
[391907348,1760974238798,-153.0,0.00026237,2]
[391907350,1760974238807,-153.0,0.00026237,2]
[391907352,1760974238817,-153.0,0.00026237,2]
[391907354,1760974238826,-153.0,0.00026237,2]
[391907355,1760974238836,-153.0,0.00026237,2]
[391907357,1760974238845,-153.0,0.00026237,2]
[391907359,1760974238855,-153.0,0.00026237,2]
[391907361,1760974238864,-153.0,0.00026239,2]
[391907362,1760974238875,-153.0,0.00026239,2]
[391907364,1760974238883,-153.0,0.00026239,2]
[391907366,1760974238894,-153.0,0.00026239,2]
[391907368,1760974238905,-153.0,0.00026239,2]
[391907370,1760974238914,-153.0,0.00026239,2]
[391907372,1760974238924,-153.0,0.00026239,2]
[391907373,1760974238934,-153.0,0.00026239,2]
[391907375,1760974238943,-153.0,0.00026239,2]
[391907377,1760974238952,-238.32305648,0.00026613,2]
[391907380,1760974238971,-240.777,0.00028151,18]
[391907381,1760974238982,-154.69,0.00028278,2]
[391907383,1760974238992,-200.0,0.00028721,2]
[391907385,1760974239003,-19.12850027,0.00029403,7]
[391907387,1760974239018,-480.87149973,0.00029403,7]
[391907389,1760974239028,-273.69816224,0.00029497,7]
[391907441,1760974239795,-475.93135235,0.00019682,2]
[391907442,1760974239805,-226.30183776,0.00029497,7]
[391907443,1760974239814,-500.0,0.00029512,7]
[391907444,1760974239824,-500.0,0.00029527,7]
[391907445,1760974239833,-500.0,0.00029746,7]
[391907446,1760974239843,-500.0,0.00029898,7]
[391907447,1760974239852,-7.05438479,0.0003,7]
[391907448,1760974239863,-142.94561521,0.0003,7]
[391907449,1760974239872,-500.0,0.00030023,7]
[391907450,1760974239881,-500.0,0.00030033,7]
[391907451,1760974239890,-500.0,0.00030096,7]
[391907452,1760974239899,-500.0,0.00030153,7]
[391907453,1760974239909,-500.0,0.00030409,7]
[391907454,1760974239919,-154.69,0.00030454,2]
[391907456,1760974239928,-500.0,0.00030513,7]
[391907457,1760974239938,-14338.8650904,0.00030539,3]
[391907459,1760974239947,-500.0,0.00030549,7]
[391907460,1760974239956,-500.0,0.00030723,7]
[391907462,1760974239966,-500.0,0.00030898,7]
[391907464,1760974239976,-2003.92,0.00030902,2]
[391907466,1760974239986,-150.0,0.00030934,7]
[391907468,1760974239996,-500.0,0.00030964,7]
[391907470,1760974240006,-430.16,0.00030981,2]
[391907473,1760974240020,-500.0,0.00031044,7]
[391907475,1760974240029,-500.0,0.00031137,7]
[391907477,1760974240040,-500.0,0.00031146,7]
[391907479,1760974240049,-500.0,0.00031346,7]
[391907481,1760974240059,-521.24,0.00031375,2]
[391907483,1760974240069,-500.0,0.00031443,7]
[391907485,1760974240079,-490.58,0.00031502,3]
[391907487,1760974240089,-500.0,0.00031519,7]
[391907489,1760974240098,-372.1435,0.000316,2]
[391907491,1760974240108,-500.0,0.00031684,7]
[391907493,1760974240117,-500.0,0.0003176,7]
[391907495,1760974240126,-500.0,0.00031863,7]
[391907497,1760974240136,-500.0,0.00032006,7]
[391907499,1760974240146,-500.0,0.00032085,7]
[391907501,1760974240155,-500.0,0.00032091,7]
[391907503,1760974240165,-500.0,0.00032091,7]
[391907505,1760974240175,-430.16,0.00032143,2]
[391907507,1760974240188,-500.0,0.00032332,7]
[391907509,1760974240197,-500.0,0.00032552,7]
[391907511,1760974240206,-1234.0,0.00032577,7]
[391907513,1760974240216,-500.0,0.00032622,7]
[391907515,1760974240227,-500.0,0.00032624,7]
[391907517,1760974240236,-500.0,0.0003276,7]
[391907519,1760974240245,-165.87,0.00032776,2]
[391907521,1760974240254,-500.0,0.00032827,7]
[391907523,1760974240266,-500.0,0.00032833,7]
[391907525,1760974240275,-500.0,0.00032877,15]
[391907527,1760974240284,-500.0,0.00032907,7]
[391907529,1760974240293,-500.0,0.00032957,7]
[391907531,1760974240302,-500.0,0.00032981,7]
[391907533,1760974240311,-186.1,0.00032999,2]
[391907535,1760974240320,-9400.53831114,0.00033,30]
[391907559,1760974240538,-1.6e-07,0.00033,30]
[391907561,1760974240549,-4460.75386315,0.00033,30]
[391907564,1760974240561,-5917.67114164,0.00033,30]
[391907566,1760974240571,-567.85003955,0.00033133,7]
[391907567,1760974240581,-500.0,0.00033151,15]
[391907569,1760974240590,-1091.749386,0.00033262,2]
[391907572,1760974240600,-500.0,0.00033271,7]
[391907574,1760974240610,-430.16,0.00033305,2]
[391907576,1760974240619,-1000.0,0.00033309,2]
[391907578,1760974240630,-296.0,0.00033321,2]
[391907579,1760974240641,-179.42,0.00033341,2]
[391907581,1760974240650,-1000.7156,0.000334,2]
[391907583,1760974240660,-180.4704,0.000334,2]
[391907586,1760974240671,-500.0,0.00033425,15]
[391907588,1760974240680,-5346.71833883,0.0003349,3]
[391907590,1760974240692,-8992.14675157,0.0003349,3]
[391907592,1760974240701,-165.10064934,0.000335,120]
[391907594,1760974240711,-171.14830438,0.000335,120]
[391907596,1760974240720,-215.47966036,0.000335,120]
[391907598,1760974240730,-7690.85179291,0.000335,120]
[391907600,1760974240743,-387.12699982,0.000335,120]
[391907602,1760974240755,-395.02529607,0.000335,120]
[391907604,1760974240764,-1006.32592178,0.000335,120]
[391907606,1760974240774,-273.29354905,0.000335,120]
[391907608,1760974240785,-50.95822003,0.000335,120]
[391907610,1760974240795,-300.0,0.00033507,2]
[391907612,1760974240804,-150.0,0.00033507,2]
[391907614,1760974240814,-150.0,0.00033507,2]
[391907616,1760974240823,-300.62,0.00033507,2]
[391907618,1760974240832,-872.27142829,0.00033507,2]
[391907620,1760974240844,-253.42857171,0.00033507,2]
[391907622,1760974240853,-352.18,0.00033507,2]
[391907624,1760974240863,-177.32,0.00033507,2]
[391907626,1760974240872,-307.3,0.00033507,2]
[391907628,1760974240882,-150.0,0.00033507,2]
[391907630,1760974240891,-168.35,0.00033507,2]
[391907632,1760974240900,-1658.83,0.00033507,2]
[391907634,1760974240909,-150.0,0.00033507,2]
[391907636,1760974240918,-168.35,0.00033507,2]
[391907638,1760974240927,-150.0,0.00033507,2]
[391907640,1760974240936,-168.0,0.00033507,2]
[391907642,1760974240946,-4442.83829596,0.00033535,3]
[391907644,1760974240957,-1035.02007347,0.00033535,3]
[391907646,1760974240969,-8861.00672097,0.00033535,3]
[391907648,1760974240979,-1024.16663422,0.00033545,2]
[391907651,1760974240990,-269.61336578,0.00033545,2]
[391907653,1760974241000,-1590.0,0.00033545,2]
[391907654,1760974241010,-503.884,0.00033545,2]
[391907656,1760974241019,-817.0,0.00033545,2]
[391907659,1760974241029,-1268.0,0.00033545,2]
[391907660,1760974241039,-1184.0,0.00033545,2]
[391907662,1760974241048,-902.0,0.00033545,2]
[391907665,1760974241058,-2547.0,0.00033545,2]
[391907667,1760974241068,-18.21927903,0.00033545,2]
[391907669,1760974241079,-552.78072097,0.00033545,2]
[391907671,1760974241088,-1390.12631243,0.00033545,2]
[391907673,1760974241104,-1200.87368757,0.00033545,2]
[391907675,1760974241114,-667.977,0.00033545,2]
[391907677,1760974241124,-6440.0,0.00033545,2]
[391907692,1760974241133,-500.0,0.00033699,15]
[391907695,1760974241285,-296.0,0.0003372,7]
[391907697,1760974241295,-228.0,0.00033768,7]
[391907699,1760974241304,-228.0,0.00033802,2]
[391907701,1760974241314,-200.0,0.00033808,2]
[391907703,1760974241323,-200.0,0.00033808,2]
[391907705,1760974241331,-200.0,0.00033808,2]
[391907707,1760974241341,-150.0,0.00033808,2]
[391907709,1760974241350,-150.0,0.00033808,2]
[391907711,1760974241360,-150.0,0.00033808,2]
[391907713,1760974241371,-150.0,0.00033808,2]
[391907715,1760974241381,-150.0,0.00033808,2]
[391907717,1760974241390,-156.21851696,0.00033808,2]
[391907719,1760974241400,-150.0,0.00033808,2]
[391907721,1760974241409,-150.0,0.00033808,2]
[391907723,1760974241418,-150.0,0.00033808,2]
[391907725,1760974241427,-296.0,0.00033828,2]
[391907727,1760974241436,-176.18,0.0003384,2]
[391907729,1760974241445,-150.0,0.0003384,2]
[391907731,1760974241454,-168.35,0.0003384,2]
[391907733,1760974241463,-413.94,0.0003384,2]
[391907735,1760974241474,-250.0,0.00033863,2]
[391907737,1760974241483,-150.0,0.00033863,2]
[391907739,1760974241493,-150.0,0.00033863,2]
[391907741,1760974241502,-150.0,0.00033863,2]
[391907743,1760974241512,-150.0,0.00033863,2]
[391907745,1760974241521,-150.0,0.00033863,2]
[391907747,1760974241530,-500.0,0.00033866,7]
[391907749,1760974241539,-848.0,0.00033889,2]
[391907751,1760974241549,-150.0,0.00033918,2]
[391907753,1760974241558,-150.0,0.00033918,2]
[391907755,1760974241568,-302.99274,0.0003395,2]
[391907757,1760974241577,-1449.24682759,0.0003396,3]
[391907759,1760974241588,-12889.61826281,0.0003396,3]
[391907761,1760974241598,-23777.97030971,0.0003397,2]
[391907763,1760974241607,-150.0,0.00033972,2]
[391907765,1760974241616,-150.0,0.00033972,2]
[391907767,1760974241626,-519.33,0.00033973,15]
[391907769,1760974241636,-1000.0,0.00034,12]
[391907771,1760974241645,-1012.0,0.00034,12]
[391907773,1760974241654,-1000.0,0.00034,12]
[391907775,1760974241663,-298.79375715,0.00034,15]
[391907777,1760974241674,-701.20624285,0.00034,15]
[391907779,1760974241683,-500.0,0.00034006,7]
[391907781,1760974241693,-200.0,0.00034022,10]
[391907783,1760974241703,-150.0,0.00034027,2]
[391907785,1760974241712,-150.0,0.00034027,2]
[391907787,1760974241721,-152.0,0.00034071,3]
[391907789,1760974241731,-250.0,0.00034082,2]
[391907791,1760974241740,-250.0,0.00034082,2]
[391907793,1760974241749,-2365.8855,0.00034102,2]